fUST/lending_fUST_20240507
["ID","MTS","AMOUNT","RATE_DAILY","PERIOD"]
[326497719,1715011256343,154.73694719,9.999e-05,2]
[326497720,1715011431201,236.07687408,9.999e-05,2]
[326497721,1715011445626,-5300.93900665,0.00012487,2]
[326497722,1715011445659,-5816.81570014,0.00012488,2]
[326497723,1715011445695,-1881.78834853,0.00012488,2]
[326497724,1715011445727,-3054.9715797,0.00012489,2]
[326497725,1715011445769,-447.00329869,0.00012489,2]
[326497726,1715011445796,-154.73694719,0.0001249,2]
[326497727,1715011445824,-9620.7451191,0.0001249,2]
[326497728,1715011503745,469.39449574,9.999e-05,2]
[326497729,1715011528262,522.62516636,9.999e-05,2]
[326497730,1715011609428,154.73694719,9.999e-05,2]
[326497731,1715011761585,447.00329869,9.999e-05,2]
[326497736,1715011777258,904.02671606,9.999e-05,2]
[326497743,1715011835798,-5300.93900665,0.00012388,2]
[326497744,1715011835808,-1881.78834853,0.00012389,2]
[326497745,1715011835817,-15688.54119062,0.00012389,2]
[326497746,1715011835827,-223.05147185,0.00012399,2]
[326497747,1715011835836,-154.73694719,0.00012486,2]
[326497748,1715011835846,-350.95471735,0.00012487,2]
[326497749,1715011835855,-254.3561742,0.00012487,2]
[326497750,1715011835865,-306.27430535,0.00012487,2]
[326497751,1715011835875,-1907.45188905,0.00012487,2]
[326497752,1715011835884,-1046.13973102,0.00012487,2]
[326497753,1715011835893,-275.63110791,0.00012487,2]
[326497754,1715011835903,-780.05392574,0.00012487,2]
[326497755,1715011835912,-412.3231426,0.00012488,2]
[326497756,1715011835934,-11593.83459748,0.00012489,2]
[326497826,1715011847095,-7821.2284221,0.00012489,2]
[326497827,1715011847548,-32579.16764992,0.00012489,2]
[326497828,1715011847558,-1000.0,0.00012499,2]
[326497829,1715011847568,-24900.0,0.00013258,2]
[326497830,1715011847577,-246.34353574,0.000136,2]
[326497831,1715011847587,-219.953339,0.00013699,2]
[326497832,1715011847602,-153.0,0.00014319,2]
[326497833,1715011847612,-255.99470265,0.00014702,2]
[326497834,1715011847621,-195.3556566,0.000149,2]
[326497835,1715011847630,-1621.83475447,0.00015998,2]
[326497836,1715011847640,-247.77709442,0.00015998,2]
[326497837,1715011847649,-674.18434544,0.00015998,2]
[326497838,1715011847658,-156.08139358,0.00015998,2]
[326497839,1715011847668,-227.19621897,0.00015998,2]
[326497840,1715011847677,-231.53494475,0.00015998,2]
[326497841,1715011847687,-377.41519267,0.00015998,2]
[326497842,1715011847697,-3053.54454188,0.00015998,2]
[326497843,1715011847706,-409.39448055,0.00015999,2]
[326497844,1715011847716,-1278.32187038,0.00015999,2]
[326497845,1715011847727,-33231.7150874,0.00016,2]
[326497848,1715011848420,-33264.7800626,0.00016,2]
[326497849,1715011848434,-153.0,0.00016137,2]
[326497850,1715011848444,-153.0,0.00016137,2]
[326497851,1715011848453,-360.61450236,0.00016199,2]
[326497853,1715011896982,154.73694719,9.999e-05,2]
[326497854,1715011915430,156.0026587,0.00027,30]
[326497855,1715011993012,1027.10231107,9.999e-05,2]
[326497856,1715012125869,584.11436245,9.999e-05,2]
[326497892,1715012350726,154.73694719,9.999e-05,2]
[326497900,1715012366646,154.73694719,9.999e-05,2]
[326497917,1715012406451,158.13417593,9.999e-05,2]
[326497919,1715012527390,803.80570875,9.999e-05,2]
[326497920,1715012816442,-1031.63408845,0.00013653,2]
[326497921,1715012945409,-1881.78834853,0.00013648,2]
[326497922,1715012945431,-248.65211909,0.00013649,2]
[326498398,1715013041408,-164.237819,0.00013583,2]
[326498399,1715013041419,-831.69168101,0.00013652,2]
[326498400,1715013041430,-4469.24732564,0.00013652,2]
[326498401,1715013041442,-6849.89560523,0.00013653,2]
[326498402,1715013041451,-219.953339,0.00013978,2]
[326498403,1715013041460,-24900.0,0.00014621,2]
[326498404,1715013041470,-669.92841382,0.00015275,2]
[326498405,1715013041479,-376.374865,0.0001589,2]
[326498406,1715013041489,-2090.3889583,0.00016199,2]
[326498407,1715013041498,-153.0,0.000162,2]
[326498408,1715013041508,-166.34331364,0.00016234,2]
[326498409,1715013041517,-164.23781899,0.00016274,2]
[326498410,1715013041525,-8044.79030373,0.00016334,2]
[326498411,1715013041534,-162.3227602,0.00016334,2]
[326498412,1715013041544,-593.89924001,0.00016334,2]
[326498413,1715013041553,-979.09152187,0.00016334,2]
[326498414,1715013041562,-815.23302663,0.00016334,2]
[326498415,1715013041571,-220.70852904,0.00016334,2]
[326498416,1715013041580,-233.60974824,0.00016334,2]
[326498417,1715013041589,-230.06612305,0.00016334,2]
[326498418,1715013041599,-335.0619737,0.00016334,2]
[326498419,1715013041608,-639.60815277,0.00016334,2]
[326498420,1715013041617,-255.69577472,0.00016334,2]
[326498421,1715013041626,-203.50602406,0.00016334,2]
[326498422,1715013041638,-1001.33114485,0.00016334,2]
[326498423,1715013041647,-718.0782307,0.00016335,2]
[326498424,1715013041656,-441.91703754,0.00016336,2]
[326498425,1715013041665,-239.99639101,0.00016336,2]
[326498426,1715013041675,-1892.53392773,0.00016336,2]
[326498427,1715013041690,-160.95815484,0.00016336,2]
[326498428,1715013041702,-154.7215013,0.00016336,2]
[326498429,1715013041712,-154.99001254,0.00016336,2]
[326498430,1715013041721,-2279.99915379,0.00016336,2]
[326498431,1715013041731,-39734.60463688,0.00016336,2]
[326498434,1715013041802,-10665.93102288,0.00016336,2]
[326498435,1715013041811,-3806.31962424,0.00016336,2]
[326498436,1715013041822,-3053.54454188,0.00016336,2]
[326498437,1715013041831,-378.89891027,0.00016336,2]
[326498438,1715013041840,-388.6908924,0.00016338,2]
[326498439,1715013041851,-55555.0,0.00016338,2]
[326498440,1715013041861,-493.0,0.00016374,2]
[326498441,1715013041872,-150.0,0.00016374,2]
[326498442,1715013041881,-4929.15386693,0.000164,2]
[326498443,1715013041890,-388.69089234,0.00016416,2]
[326498444,1715013041899,-154.7215013,0.00016436,2]
[326498445,1715013041909,-155.43191949,0.00016436,2]
[326498446,1715013041918,-312.56548617,0.00016436,2]
[326498447,1715013041928,-156.16553835,0.00016436,2]
[326498448,1715013041938,-216.65204481,0.00016436,2]
[326498449,1715013041947,-157.51484189,0.00016436,2]
[326498450,1715013041956,-1939.0301252,0.00016436,2]
[326498451,1715013041965,-992.86017487,0.00016436,2]
[326498452,1715013041975,-2628.34812808,0.00016437,2]
[326498453,1715013041984,-688.08920431,0.00016437,2]
[326498454,1715013041994,-41580.03512485,0.00016438,2]
[326498455,1715013042004,-500.0,0.00016438,2]
[326498456,1715013042014,-500.0,0.00016438,2]
[326498457,1715013042024,-500.0,0.00016438,2]
[326498458,1715013042033,-500.0,0.00016438,2]
[326498459,1715013042046,-502.78,0.00016438,2]
[326498460,1715013042072,-500.0,0.00016438,2]
[326498461,1715013042097,-500.0,0.00016438,2]
[326498462,1715013042132,-500.0,0.00016438,2]
[326498463,1715013042172,-500.0,0.00016438,2]
[326498464,1715013042190,-500.0,0.00016438,2]
[326498465,1715013042200,-827.67,0.00016438,2]
[326498466,1715013042209,-1000.0,0.00016438,2]
[326498467,1715013042218,-500.0,0.00016438,2]
[326498468,1715013042227,-500.0,0.00016438,2]
[326498469,1715013042236,-500.0,0.00016438,2]
[326498470,1715013042246,-556.73,0.00016438,2]
[326498471,1715013042254,-500.0,0.00016438,2]
[326498472,1715013042263,-500.0,0.00016438,2]
[326498473,1715013042272,-500.0,0.00016438,2]
[326498474,1715013042281,-500.0,0.00016438,2]
[326498475,1715013042291,-500.0,0.00016438,2]
[326498476,1715013042300,-563.89763233,0.00016438,2]
[326498477,1715013042310,-500.0,0.00016438,2]
[326498478,1715013042318,-500.0,0.00016438,2]
[326498479,1715013042329,-544.88676059,0.00016438,2]
[326498480,1715013042338,-500.0,0.00016438,2]
[326498481,1715013042348,-500.0,0.00016438,2]
[326498482,1715013042357,-151.0,0.00016438,2]
[326498483,1715013042366,-500.0,0.00016438,2]
[326498484,1715013042376,-500.0,0.00016438,2]
[326498485,1715013042385,-500.0,0.00016438,2]
[326498486,1715013042395,-527.43,0.00016438,2]
[326498487,1715013042405,-500.0,0.00016438,2]
[326498488,1715013042414,-500.0,0.00016438,2]
[326498489,1715013042424,-500.0,0.00016438,2]
[326498490,1715013042433,-500.0,0.00016438,2]
[326498491,1715013042446,-501.86647643,0.00016438,2]
[326498492,1715013042455,-151.0,0.00016438,2]
[326498493,1715013042464,-500.0,0.00016438,2]
[326498494,1715013042473,-151.0,0.00016438,2]
[326498495,1715013042483,-151.0,0.00016438,2]
[326498496,1715013042492,-500.0,0.00016438,2]
[326498497,1715013042501,-500.0,0.00016438,2]
[326498498,1715013042511,-499.08233041,0.00016438,2]
[326498499,1715013042521,-500.0,0.00016438,2]
[326498500,1715013042531,-518.24,0.00016438,2]
[326498501,1715013042540,-500.0,0.00016438,2]
[326498502,1715013042549,-585.78958856,0.00016438,2]
[326498503,1715013042559,-500.0,0.00016438,2]
[326498504,1715013042568,-500.0,0.00016438,2]
[326498505,1715013042577,-226.77013386,0.00016438,2]
[326498506,1715013042586,-569.25,0.00016438,2]
[326498507,1715013042596,-500.0,0.00016438,2]
[326498508,1715013042605,-500.0,0.00016438,2]
[326498509,1715013042615,-377.2593386,0.00016438,2]
[326498510,1715013042624,-500.0,0.00016438,2]
[326498511,1715013042634,-500.0,0.00016438,2]
[326498512,1715013042647,-202.05074407,0.00016438,2]
[326498513,1715013042657,-500.0,0.00016438,2]
[326498515,1715013042666,-500.0,0.00016438,2]
[326498517,1715013042676,-595.6,0.00016438,2]
[326498518,1715013042688,-500.0,0.00016438,2]
[326498519,1715013042704,-595.48,0.00016438,2]
[326498520,1715013042713,-500.0,0.00016438,2]
[326498521,1715013042723,-521.9529511,0.00016438,2]
[326498522,1715013042733,-500.0,0.00016438,2]
[326498523,1715013042742,-500.0,0.00016438,2]
[326498524,1715013042751,-500.0,0.00016438,2]
[326498525,1715013042760,-500.0,0.00016438,2]
[326498526,1715013042773,-500.0,0.00016438,2]
[326498527,1715013042784,-500.0,0.00016438,2]
[326498528,1715013042793,-500.0,0.00016438,2]
[326498529,1715013042803,-500.0,0.00016438,2]
[326498530,1715013042812,-587.86,0.00016438,2]
[326498531,1715013042823,-500.0,0.00016438,2]
[326498532,1715013042832,-500.0,0.00016438,2]
[326498533,1715013042842,-500.0,0.00016438,2]
[326498534,1715013042851,-500.0,0.00016438,2]
[326498535,1715013042863,-531.26,0.00016438,2]
[326498536,1715013042874,-455.25613864,0.00016438,2]
[326498537,1715013042883,-794.53,0.00016438,2]
[326498538,1715013042894,-500.0,0.00016438,2]
[326498539,1715013042903,-500.0,0.00016438,2]
[326498541,1715013042913,-500.0,0.00016438,2]
[326498543,1715013042923,-500.0,0.00016438,2]
[326498544,1715013042933,-500.0,0.00016438,2]
[326498546,1715013042946,-580.43609703,0.00016438,2]
[326498547,1715013042956,-500.0,0.00016438,2]
[326498548,1715013042965,-500.0,0.00016438,2]
[326498549,1715013042974,-500.0,0.00016438,2]
[326498550,1715013042982,-537.82,0.00016438,2]
[326498551,1715013042992,-1568.75,0.00016438,2]
[326498552,1715013043000,-500.0,0.00016438,2]
[326498553,1715013043009,-500.0,0.00016438,2]
[326498554,1715013043018,-500.0,0.00016438,2]
[326498555,1715013043028,-500.0,0.00016438,2]
[326498556,1715013043037,-500.0,0.00016438,2]
[326498557,1715013043046,-859.7,0.00016438,2]
[326498558,1715013043056,-478.15,0.00016438,2]
[326498559,1715013043065,-818.25,0.00016438,2]
[326498560,1715013043075,-500.0,0.00016438,2]
[326498561,1715013043084,-500.0,0.00016438,2]
[326498562,1715013043093,-775.95,0.00016438,2]
[326498563,1715013043102,-500.0,0.00016438,2]
[326498564,1715013043111,-500.0,0.00016438,2]
[326498565,1715013043121,-500.0,0.00016438,2]
[326498566,1715013043131,-500.0,0.00016438,2]
[326498569,1715013043146,-4322.62,0.00016438,2]
[326498571,1715013043157,-569.57122799,0.00016438,2]
[326498577,1715013043186,-500.0,0.00016438,2]
[326498578,1715013043198,-514.61,0.00016438,2]
[326498579,1715013043207,-500.0,0.00016438,2]
[326498580,1715013043216,-1988.88,0.00016438,2]
[326498582,1715013043226,-3759.39,0.00016438,2]
[326498584,1715013043235,-908.11,0.00016438,2]
[326498585,1715013043245,-1114.99,0.00016438,2]
[326498586,1715013043254,-500.0,0.00016438,2]
[326498587,1715013043264,-500.0,0.00016438,2]
[326498588,1715013043273,-254.64522035,0.00016438,2]
[326498589,1715013043283,-1574.92,0.00016438,2]
[326498590,1715013043292,-940.54,0.00016438,2]
[326498591,1715013043302,-500.0,0.00016438,2]
[326498592,1715013043311,-590.55,0.00016438,2]
[326498593,1715013043321,-500.0,0.00016438,2]
[326498594,1715013043331,-678.96,0.00016438,2]
[326498595,1715013043340,-515.76,0.00016438,2]
[326498596,1715013043349,-500.0,0.00016438,2]
[326498597,1715013043360,-500.0,0.00016438,2]
[326498598,1715013043370,-500.0,0.00016438,2]
[326498599,1715013043379,-500.0,0.00016438,2]
[326498601,1715013043389,-500.0,0.00016438,2]
[326498603,1715013043398,-154.21177102,0.00016438,2]
[326498605,1715013043409,-518.1912909,0.00016438,2]
[326498607,1715013043418,-500.0,0.00016438,2]
[326498609,1715013043428,-500.0,0.00016438,2]
[326498610,1715013043439,-1189.61,0.00016438,2]
[326498612,1715013043450,-500.0,0.00016438,2]
[326498613,1715013043459,-500.0,0.00016438,2]
[326498615,1715013043469,-500.0,0.00016438,2]
[326498617,1715013043478,-500.0,0.00016438,2]
[326498618,1715013043489,-846.15,0.00016438,2]
[326498619,1715013043498,-1717.99,0.00016438,2]
[326498620,1715013043508,-151.0,0.00016438,2]
[326498621,1715013043518,-1450.36,0.00016438,2]
[326498622,1715013043531,-500.0,0.00016438,2]
[326498623,1715013043540,-826.63,0.00016438,2]
[326498624,1715013043552,-151.792529,0.00016438,2]
[326498625,1715013043561,-500.0,0.00016438,2]
[326498626,1715013043571,-500.0,0.00016438,2]
[326498627,1715013043580,-500.0,0.00016438,2]
[326498628,1715013043590,-500.0,0.00016438,2]
[326498629,1715013043600,-500.0,0.00016438,2]
[326498630,1715013043609,-151.0,0.00016438,2]
[326498631,1715013043618,-151.0,0.00016438,2]
[326498632,1715013043627,-500.0,0.00016438,2]
[326498633,1715013043636,-500.0,0.00016438,2]
[326498634,1715013043646,-500.0,0.00016438,2]
[326498635,1715013043656,-500.0,0.00016438,2]
[326498636,1715013043666,-500.0,0.00016438,2]
[326498637,1715013043675,-151.0,0.00016438,2]
[326498638,1715013043686,-604.5099815,0.00016438,2]
[326498639,1715013043698,-500.0,0.00016438,2]
[326498640,1715013043708,-500.0,0.00016438,2]
[326498641,1715013043717,-500.0,0.00016438,2]
[326498642,1715013043727,-500.0,0.00016438,2]
[326498643,1715013043736,-500.0,0.00016438,2]
[326498644,1715013043745,-500.0,0.00016438,2]
[326498645,1715013043755,-151.0,0.00016438,2]
[326498646,1715013043765,-151.0,0.00016438,2]
[326498647,1715013043778,-500.0,0.00016438,2]
[326498648,1715013043789,-500.0,0.00016438,2]
[326498649,1715013043799,-500.0,0.00016438,2]
[326498650,1715013043809,-500.0,0.00016438,2]
[326498651,1715013043820,-500.0,0.00016438,2]
[326498652,1715013043830,-2473.14,0.00016438,2]
[326498653,1715013043840,-500.0,0.00016438,2]
[326498654,1715013043850,-500.0,0.00016438,2]
[326498655,1715013043860,-907.93,0.00016438,2]
[326498656,1715013043870,-500.0,0.00016438,2]
[326498657,1715013043880,-500.0,0.00016438,2]
[326498658,1715013043889,-529.5,0.00016438,2]
[326498659,1715013043899,-151.0,0.00016438,2]
[326498660,1715013043908,-500.0,0.00016438,2]
[326498661,1715013043917,-490.32132794,0.00016438,2]
[326498662,1715013043927,-500.0,0.00016438,2]
[326498663,1715013043939,-501.01555627,0.00016438,2]
[326498664,1715013043950,-509.28,0.00016438,2]
[326498665,1715013043959,-151.0,0.00016438,2]
[326498666,1715013043968,-151.0,0.00016438,2]
[326498667,1715013043978,-151.0,0.00016438,2]
[326498668,1715013043987,-594.63,0.00016438,2]
[326498669,1715013043996,-151.0,0.00016438,2]
[326498670,1715013044006,-151.0,0.00016438,2]
[326498671,1715013044015,-227.963396,0.00016438,2]
[326498672,1715013044026,-708.17,0.00016438,2]
[326498673,1715013044036,-500.0,0.00016438,2]
[326498674,1715013044045,-500.0,0.00016438,2]
[326498675,1715013044055,-500.0,0.00016438,2]
[326498676,1715013044064,-500.0,0.00016438,2]
[326498677,1715013044074,-500.0,0.00016438,2]
[326498678,1715013044084,-597.24,0.00016438,2]
[326498679,1715013044094,-413.1649869,0.00016438,2]
[326498680,1715013044104,-500.0,0.00016438,2]
[326498681,1715013044114,-151.0,0.00016438,2]
[326498682,1715013044123,-500.0,0.00016438,2]
[326498683,1715013044132,-500.0,0.00016438,2]
[326498684,1715013044142,-151.0,0.00016438,2]
[326498685,1715013044152,-151.0,0.00016438,2]
[326498686,1715013044161,-151.0,0.00016438,2]
[326498687,1715013044172,-151.0,0.00016438,2]
[326498688,1715013044181,-500.0,0.00016438,2]
[326498689,1715013044192,-151.0,0.00016438,2]
[326498694,1715013044345,-151.0,0.00016438,2]
[326498696,1715013044355,-827.19,0.00016438,2]
[326498697,1715013044365,-500.0,0.00016438,2]
[326498698,1715013044379,-151.0,0.00016438,2]
[326498699,1715013044391,-151.0,0.00016438,2]
[326498700,1715013044404,-151.0,0.00016438,2]
[326498701,1715013044413,-151.0,0.00016438,2]
[326498702,1715013044423,-151.0,0.00016438,2]
[326498703,1715013044433,-151.0,0.00016438,2]
[326498704,1715013044443,-151.0,0.00016438,2]
[326498705,1715013044452,-151.0,0.00016438,2]
[326498706,1715013044462,-151.0,0.00016438,2]
[326498707,1715013044471,-151.0,0.00016438,2]
[326498708,1715013044481,-274.71158,0.00016438,2]
[326498709,1715013044490,-692.46,0.00016438,2]
[326498710,1715013044499,-500.0,0.00016438,2]
[326498711,1715013044509,-856.31,0.00016438,2]
[326498712,1715013044518,-500.0,0.00016438,2]
[326498713,1715013044528,-500.0,0.00016438,2]
[326498714,1715013044538,-735.7,0.00016438,2]
[326498715,1715013044547,-500.0,0.00016438,2]
[326498716,1715013044556,-500.0,0.00016438,2]
[326498717,1715013044565,-151.0,0.00016438,2]
[326498718,1715013044575,-151.0,0.00016438,2]
[326498719,1715013044584,-151.0,0.00016438,2]
[326498720,1715013044593,-151.0,0.00016438,2]
[326498721,1715013044603,-219.209292,0.00016438,2]
[326498722,1715013044612,-500.0,0.00016438,2]
[326498723,1715013044622,-645.88,0.00016438,2]
[326498724,1715013044631,-4704.38,0.00016438,2]
[326498725,1715013044640,-1133.27,0.00016438,2]
[326498726,1715013044649,-500.0,0.00016438,2]
[326498727,1715013044659,-151.0,0.00016438,2]
[326498728,1715013044667,-1496.84,0.00016438,2]
[326498729,1715013044676,-151.0,0.00016438,2]
[326498730,1715013044688,-151.0,0.00016438,2]
[326498731,1715013044697,-500.0,0.00016438,2]
[326498732,1715013044707,-151.0,0.00016438,2]
[326498733,1715013044719,-151.0,0.00016438,2]
[326498734,1715013044728,-151.0,0.00016438,2]
[326498735,1715013044737,-2380.98,0.00016438,2]
[326498736,1715013044749,-151.0,0.00016438,2]
[326498737,1715013044759,-218.150176,0.00016438,2]
[326498738,1715013044768,-500.0,0.00016438,2]
[326498739,1715013044781,-500.0,0.00016438,2]
[326498740,1715013044791,-500.0,0.00016438,2]
[326498741,1715013044801,-536.09,0.00016438,2]
[326498742,1715013044811,-787.81,0.00016438,2]
[326498743,1715013044822,-500.0,0.00016438,2]
[326498744,1715013044831,-500.0,0.00016438,2]
[326498745,1715013044840,-455.40585621,0.00016438,2]
[326498746,1715013044850,-500.0,0.00016438,2]
[326498747,1715013044860,-500.0,0.00016438,2]
[326498748,1715013044871,-256.268267,0.00016438,2]
[326498749,1715013044880,-256.268267,0.00016438,2]
[326498750,1715013044889,-5804.61,0.00016438,2]
[326498751,1715013044898,-256.268267,0.00016438,2]
[326498752,1715013044908,-256.268267,0.00016438,2]
[326498753,1715013044917,-256.268267,0.00016438,2]
[326498754,1715013044926,-256.268267,0.00016438,2]
[326498755,1715013044936,-256.268267,0.00016438,2]
[326498756,1715013044947,-500.0,0.00016438,2]
[326498757,1715013044956,-256.268267,0.00016438,2]
[326498758,1715013044966,-256.268267,0.00016438,2]
[326498759,1715013044976,-8147.11,0.00016438,2]
[326498760,1715013044986,-500.0,0.00016438,2]
[326498761,1715013044995,-256.268267,0.00016438,2]
[326498762,1715013045004,-256.268267,0.00016438,2]
[326498763,1715013045013,-151.0,0.00016438,2]
[326498764,1715013045023,-256.268267,0.00016438,2]
[326498765,1715013045034,-256.268267,0.00016438,2]
[326498766,1715013045043,-10522.48,0.00016438,2]
[326498767,1715013045053,-277.510134,0.00016438,2]
[326498768,1715013045062,-256.268267,0.00016438,2]
[326498769,1715013045071,-256.268267,0.00016438,2]
[326498770,1715013045081,-256.268267,0.00016438,2]
[326498771,1715013045090,-256.268267,0.00016438,2]
[326498773,1715013045099,-256.268267,0.00016438,2]
[326498775,1715013045109,-256.268267,0.00016438,2]
[326498777,1715013045120,-889.72,0.00016438,2]
[326498778,1715013045129,-256.268258,0.00016438,2]
[326498779,1715013045138,-500.0,0.00016438,2]
[326498780,1715013045147,-500.0,0.00016438,2]
[326498781,1715013045157,-1215.06,0.00016438,2]
[326498782,1715013045167,-500.0,0.00016438,2]
[326498783,1715013045176,-980.95,0.00016438,2]
[326498784,1715013045186,-530.87123523,0.00016438,2]
[326498785,1715013045196,-500.0,0.00016438,2]
[326498786,1715013045205,-500.0,0.00016438,2]
[326498787,1715013045215,-1322.29,0.00016438,2]
[326498788,1715013045224,-629.24,0.00016438,2]
[326498789,1715013045233,-500.0,0.00016438,2]
[326498790,1715013045242,-500.0,0.00016438,2]
[326498791,1715013045252,-500.0,0.00016438,2]
[326498792,1715013045261,-500.0,0.00016438,2]
[326498793,1715013045270,-151.0,0.00016438,2]
[326498794,1715013045280,-151.0,0.00016438,2]
[326498795,1715013045290,-151.0,0.00016438,2]
[326498796,1715013045310,-151.0,0.00016438,2]
[326498797,1715013045336,-151.0,0.00016438,2]
[326498798,1715013045359,-151.0,0.00016438,2]
[326498799,1715013045384,-500.0,0.00016438,2]
[326498800,1715013045410,-151.0,0.00016438,2]
[326498801,1715013045423,-193.242039,0.00016438,2]
[326498802,1715013045433,-504.70334649,0.00016438,2]
[326498803,1715013045447,-689.78,0.00016438,2]
[326498804,1715013045460,-10687.97,0.00016438,2]
[326498805,1715013045471,-500.0,0.00016438,2]
[326498806,1715013045481,-500.0,0.00016438,2]
[326498807,1715013045491,-872.37,0.00016438,2]
[326498808,1715013045501,-1084.66,0.00016438,2]
[326498809,1715013045510,-500.0,0.00016438,2]
[326498810,1715013045520,-728.24,0.00016438,2]
[326498811,1715013045530,-5024.29,0.00016438,2]
[326498812,1715013045541,-1008.33,0.00016438,2]
[326498813,1715013045550,-675.39,0.00016438,2]
[326498814,1715013045560,-384.028853,0.00016438,2]
[326498815,1715013045570,-384.028853,0.00016438,2]
[326498816,1715013045580,-384.028853,0.00016438,2]
[326498817,1715013045590,-500.0,0.00016438,2]
[326498818,1715013045600,-384.028853,0.00016438,2]
[326498819,1715013045610,-500.0,0.00016438,2]
[326498820,1715013045620,-500.0,0.00016438,2]
[326498821,1715013045629,-384.028853,0.00016438,2]
[326498822,1715013045639,-384.028853,0.00016438,2]
[326498823,1715013045649,-384.028853,0.00016438,2]
[326498824,1715013045659,-500.0,0.00016438,2]
[326498825,1715013045669,-500.0,0.00016438,2]
[326498826,1715013045680,-500.0,0.00016438,2]
[326498827,1715013045691,-500.0,0.00016438,2]
[326498828,1715013045700,-500.0,0.00016438,2]
[326498829,1715013045711,-510.34,0.00016438,2]
[326498830,1715013045720,-151.0,0.00016438,2]
[326498831,1715013045730,-151.0,0.00016438,2]
[326498832,1715013045740,-2742.92,0.00016438,2]
[326498833,1715013045750,-500.0,0.00016438,2]
[326498834,1715013045760,-412.46896028,0.00016438,2]
[326498835,1715013045770,-385.17017313,0.00016438,2]
[326498836,1715013045785,-1587.51,0.00016438,2]
[326498837,1715013045794,-500.0,0.00016438,2]
[326498838,1715013045804,-500.0,0.00016438,2]
[326498839,1715013045817,-508.26,0.00016438,2]
[326498840,1715013045828,-384.028853,0.00016438,2]
[326498841,1715013045838,-384.028853,0.00016438,2]
[326498842,1715013045848,-384.028853,0.00016438,2]
[326498843,1715013045859,-384.028853,0.00016438,2]
[326498844,1715013045868,-384.028853,0.00016438,2]
[326498845,1715013045878,-384.028853,0.00016438,2]
[326498846,1715013045887,-500.0,0.00016438,2]
[326498847,1715013045897,-500.0,0.00016438,2]
[326498848,1715013045907,-384.028853,0.00016438,2]
[326498849,1715013045917,-384.028853,0.00016438,2]
[326498850,1715013045927,-3308.38098832,0.00016438,2]
[326498851,1715013046698,-2768.95901168,0.00016438,2]
[326498852,1715013046707,-384.028853,0.00016438,2]
[326498853,1715013046717,-575.83,0.00016438,2]
[326498854,1715013046726,-384.028853,0.00016438,2]
[326498855,1715013046736,-384.028853,0.00016438,2]
[326498856,1715013046745,-384.028853,0.00016438,2]
[326498857,1715013046754,-384.028853,0.00016438,2]
[326498858,1715013046763,-500.0,0.00016438,2]
[326498859,1715013046773,-2776.26,0.00016438,2]
[326498860,1715013046785,-500.0,0.00016438,2]
[326498861,1715013046795,-5661.22,0.00016438,2]
[326498862,1715013046804,-500.0,0.00016438,2]
[326498863,1715013046813,-769.92,0.00016438,2]
[326498864,1715013046824,-500.0,0.00016438,2]
[326498865,1715013046834,-500.0,0.00016438,2]
[326498866,1715013046843,-175.55,0.00016438,2]
[326498867,1715013046854,-1089.59,0.00016438,2]